[Event "Titled Tuesday Blitz May 2 Early 2023"]
[White "Remizov, Yaroslav"]
[Black "Vidit, Santosh Gujrathi"]
[WhiteFideId "34134015"]
[BlackFideId "5029465"]
[WhiteElo "2412"]
[BlackElo "2651"]
[Result "1/2-1/2"]
[Round "06"]
[TimeControl "180+2"]
[Date "2023.05.02"]
[WhiteClock "0:00:03"]
[BlackClock "0:00:05"]

1. e4 {[%clk 0:03:00]}  e6 {[%clk 0:02:59]} 2. d4 {[%clk 0:02:59]}  d5 {[%clk 0:03:00]} 3. Nc3 {[%clk 0:02:59]}  Nf6 {[%clk 0:02:59]} 4. Bg5 {[%clk 0:02:56]}  dxe4 {[%clk 0:02:59]} 5. Nxe4 {[%clk 0:02:56]}  Be7 {[%clk 0:02:59]} 6. Bxf6 {[%clk 0:02:56]}  gxf6 {[%clk 0:03:00]} 7. g3 {[%clk 0:02:46]}  f5 {[%clk 0:02:50]} 8. Nc3 {[%clk 0:02:46]}  Bf6 {[%clk 0:02:28]} 9. Nge2 {[%clk 0:02:42]}  Nc6 {[%clk 0:02:28]} 10. d5 {[%clk 0:02:35]}  exd5 {[%clk 0:02:29]} 11. Qxd5 {[%clk 0:02:30]}  Be6 {[%clk 0:02:14]} 12. Qxd8+ {[%clk 0:02:28]}  Rxd8 {[%clk 0:02:15]} 13. Bg2 {[%clk 0:02:24]}  Bc4 {[%clk 0:01:36]} 14. Rd1 {[%clk 0:01:52]}  O-O {[%clk 0:01:34]} 15. b3 {[%clk 0:01:36]}  Ba6 {[%clk 0:01:08]} 16. Rxd8 {[%clk 0:01:09]}  Rxd8 {[%clk 0:01:07]} 17. Nd5 {[%clk 0:01:10]}  Bg7 {[%clk 0:01:01]} 18. c4 {[%clk 0:00:52]}  Rd7 {[%clk 0:00:40]} 19. O-O {[%clk 0:00:51]}  Ne5 {[%clk 0:00:37]} 20. Nef4 {[%clk 0:00:20]}  Kf8 {[%clk 0:00:19]} 21. Re1 {[%clk 0:00:11]}  b6 {[%clk 0:00:14]} 22. Ne3 {[%clk 0:00:11]}  Rd2 {[%clk 0:00:07]} 23. Nxf5 {[%clk 0:00:10]}  Bh8 {[%clk 0:00:07]} 24. a4 {[%clk 0:00:08]}  Bc8 {[%clk 0:00:07]} 25. Ne3 {[%clk 0:00:05]}  c6 {[%clk 0:00:07]} 26. h3 {[%clk 0:00:05]}  Rb2 {[%clk 0:00:05]} 27. Rd1 {[%clk 0:00:04]}  Ke7 {[%clk 0:00:05]} 28. Nd3 {[%clk 0:00:03]}  Nxd3 {[%clk 0:00:03]} 29. Rxd3 {[%clk 0:00:04]}  Bd7 {[%clk 0:00:03]} 30. h4 {[%clk 0:00:03]}  Be5 {[%clk 0:00:03]} 31. Be4 {[%clk 0:00:03]}  h6 {[%clk 0:00:03]} 32. Nf5+ {[%clk 0:00:04]}  Bxf5 {[%clk 0:00:02]} 33. Bxf5 {[%clk 0:00:05]}  Bd6 {[%clk 0:00:03]} 34. Be4 {[%clk 0:00:05]}  Bc5 {[%clk 0:00:03]} 35. Rf3 {[%clk 0:00:05]}  Ke6 {[%clk 0:00:01]} 36. Bxc6 {[%clk 0:00:05]}  f6 {[%clk 0:00:01]} 37. Bd5+ {[%clk 0:00:05]}  Ke5 {[%clk 0:00:02]} 38. Kg2 {[%clk 0:00:06]}  Bd4 {[%clk 0:00:02]} 39. g4 {[%clk 0:00:06]}  a5 {[%clk 0:00:02]} 40. Rf5+ {[%clk 0:00:06]}  Kd6 {[%clk 0:00:02]} 41. Be4 {[%clk 0:00:06]}  Ke7 {[%clk 0:00:01]} 42. Rf3 {[%clk 0:00:06]}  Bc5 {[%clk 0:00:01]} 43. Bd5 {[%clk 0:00:07]}  Bd4 {[%clk 0:00:02]} 44. Kg3 {[%clk 0:00:07]}  Be5+ {[%clk 0:00:02]} 45. Kg2 {[%clk 0:00:07]}  Bd4 {[%clk 0:00:03]} 46. Rf4 {[%clk 0:00:07]}  Be5 {[%clk 0:00:03]} 47. Rf5 {[%clk 0:00:07]}  Bd4 {[%clk 0:00:02]} 48. Kg3 {[%clk 0:00:08]}  Rxb3+ {[%clk 0:00:03]} 49. f3 {[%clk 0:00:07]}  Rb2 {[%clk 0:00:03]} 50. g5 {[%clk 0:00:08]}  hxg5 {[%clk 0:00:03]} 51. hxg5 {[%clk 0:00:08]}  fxg5 {[%clk 0:00:03]} 52. Rxg5 {[%clk 0:00:09]}  Bc5 {[%clk 0:00:03]} 53. Rg7+ {[%clk 0:00:09]}  Kf6 {[%clk 0:00:02]} 54. Rf7+ {[%clk 0:00:09]}  Ke5 {[%clk 0:00:01]} 55. f4+ {[%clk 0:00:08]}  Kd4 {[%clk 0:00:02]} 56. Rd7 {[%clk 0:00:08]}  Ke3 {[%clk 0:00:02]} 57. f5 {[%clk 0:00:08]}  Rb1 {[%clk 0:00:02]} 58. f6 {[%clk 0:00:08]}  Rg1+ {[%clk 0:00:02]} 59. Bg2 {[%clk 0:00:08]}  Rc1 {[%clk 0:00:01]} 60. f7 {[%clk 0:00:08]}  Rxc4 {[%clk 0:00:01]} 61. Rd8 {[%clk 0:00:08]}  Rxa4 {[%clk 0:00:01]} 62. Re8+ {[%clk 0:00:08]}  Kd2 {[%clk 0:00:01]} 63. Rc8 {[%clk 0:00:08]}  Bd6+ {[%clk 0:00:01]} 64. Kh3 {[%clk 0:00:08]}  Rf4 {[%clk 0:00:02]} 65. Rd8 {[%clk 0:00:08]}  Rxf7 {[%clk 0:00:02]} 66. Rxd6+ {[%clk 0:00:09]}  Kc3 {[%clk 0:00:03]} 67. Rxb6 {[%clk 0:00:09]}  a4 {[%clk 0:00:03]} 68. Ra6 {[%clk 0:00:10]}  Kb4 {[%clk 0:00:03]} 69. Bc6 {[%clk 0:00:09]}  a3 {[%clk 0:00:04]} 70. Ra4+ {[%clk 0:00:09]}  Kb3 {[%clk 0:00:04]} 71. Ra8 {[%clk 0:00:10]}  Rf5 {[%clk 0:00:03]} 72. Kg4 {[%clk 0:00:10]}  Rc5 {[%clk 0:00:03]} 73. Bd7 {[%clk 0:00:10]}  Kb2 {[%clk 0:00:03]} 74. Be6 {[%clk 0:00:10]}  Rb5 {[%clk 0:00:03]} 75. Kf4 {[%clk 0:00:10]}  Rb3 {[%clk 0:00:03]} 76. Bxb3 {[%clk 0:00:09]}  Kxb3 {[%clk 0:00:04]} 77. Ke3 {[%clk 0:00:10]}  a2 {[%clk 0:00:05]} 78. Kd2 {[%clk 0:00:08]}  Kb2 {[%clk 0:00:05]} 79. Rb8+ {[%clk 0:00:08]}  Ka1 {[%clk 0:00:04]} 80. Ra8 {[%clk 0:00:04]}  Kb2 {[%clk 0:00:04]} 81. Rb8+ {[%clk 0:00:04]}  Ka1 {[%clk 0:00:05]} 82. Rh8 {[%clk 0:00:03]}  Kb2 {[%clk 0:00:05]} 83. Rb8+ {[%clk 0:00:03]} 1/2-1/2


[Site "https://www.chess.com"]

[Event "Titled Tuesday Blitz May 2 Early 2023"]
[White "Maghsoodloo, Parham"]
[Black "Kosakowski, Jakub"]
[WhiteFideId "12539929"]
[BlackFideId "1185080"]
[WhiteElo "2647"]
[BlackElo "2488"]
[Result "1-0"]
[Round "06"]
[TimeControl "180+2"]
[Date "2023.05.02"]
[WhiteClock "0:00:03"]
[BlackClock "0:00:02"]

1. e4 {[%clk 0:02:59]}  c6 {[%clk 0:03:00]} 2. d4 {[%clk 0:02:57]}  d5 {[%clk 0:03:00]} 3. f3 {[%clk 0:02:56]}  Qb6 {[%clk 0:02:59]} 4. Nc3 {[%clk 0:02:54]}  dxe4 {[%clk 0:02:59]} 5. Bc4 {[%clk 0:02:53]}  Nf6 {[%clk 0:02:59]} 6. fxe4 {[%clk 0:02:52]}  e5 {[%clk 0:02:59]} 7. dxe5 {[%clk 0:02:52]}  Ng4 {[%clk 0:02:57]} 8. Qe2 {[%clk 0:02:52]}  Bc5 {[%clk 0:02:48]} 9. Nf3 {[%clk 0:02:35]}  Nd7 {[%clk 0:02:20]} 10. Rf1 {[%clk 0:02:03]}  O-O {[%clk 0:01:56]} 11. e6 {[%clk 0:01:52]}  Nde5 {[%clk 0:01:56]} 12. exf7+ {[%clk 0:01:48]}  Kh8 {[%clk 0:01:56]} 13. Bb3 {[%clk 0:01:46]}  Nxf3+ {[%clk 0:01:39]} 14. gxf3 {[%clk 0:01:46]}  Ne3 {[%clk 0:01:39]} 15. Bxe3 {[%clk 0:01:32]}  Bxe3 {[%clk 0:01:39]} 16. f4 {[%clk 0:01:27]}  a5 {[%clk 0:01:10]} 17. Rd1 {[%clk 0:00:54]}  Bd4 {[%clk 0:00:29]} 18. Na4 {[%clk 0:00:51]}  Qa7 {[%clk 0:00:29]} 19. Nc3 {[%clk 0:00:20]}  Bh3 {[%clk 0:00:20]} 20. e5 {[%clk 0:00:16]}  a4 {[%clk 0:00:16]} 21. Nxa4 {[%clk 0:00:11]}  Bxf1 {[%clk 0:00:06]} 22. Kxf1 {[%clk 0:00:12]}  Rad8 {[%clk 0:00:07]} 23. Rd3 {[%clk 0:00:06]}  b5 {[%clk 0:00:05]} 24. Nc3 {[%clk 0:00:06]}  Qe7 {[%clk 0:00:04]} 25. Ne4 {[%clk 0:00:06]}  c5 {[%clk 0:00:03]} 26. Rh3 {[%clk 0:00:04]}  c4 {[%clk 0:00:03]} 27. Qh5 {[%clk 0:00:04]}  h6 {[%clk 0:00:03]} 28. Ng5 {[%clk 0:00:04]}  Rxf7 {[%clk 0:00:02]} 29. Nxf7+ {[%clk 0:00:04]}  Kg8 {[%clk 0:00:02]} 30. Nxd8 {[%clk 0:00:05]}  cxb3 {[%clk 0:00:03]} 31. axb3 {[%clk 0:00:02]}  Qxd8 {[%clk 0:00:03]} 32. Rd3 {[%clk 0:00:03]}  Qb6 {[%clk 0:00:03]} 33. Qe8+ {[%clk 0:00:02]}  Kh7 {[%clk 0:00:04]} 34. f5 {[%clk 0:00:03]}  Qc5 {[%clk 0:00:03]} 35. Qg6+ {[%clk 0:00:03]}  Kg8 {[%clk 0:00:03]} 36. Qd6 {[%clk 0:00:03]}  Qxc2 {[%clk 0:00:01]} 37. Qxd4 {[%clk 0:00:03]}  Qc1+ {[%clk 0:00:02]} 38. Rd1 {[%clk 0:00:03]} 1-0


[Site "https://www.chess.com"]

[Event "Titled Tuesday Blitz May 2 Early 2023"]
[White "Alekseenko, Kirill"]
[Black "Nagy, Gabor"]
[WhiteFideId "4135539"]
[BlackFideId "737119"]
[WhiteElo "2683"]
[BlackElo "2514"]
[Result "0-1"]
[Round "06"]
[TimeControl "180+2"]
[Date "2023.05.02"]
[WhiteClock "0:00:14"]
[BlackClock "0:00:33"]

1. d4 {[%clk 0:02:56]}  Nf6 {[%clk 0:02:38]} 2. Nc3 {[%clk 0:02:54]}  d5 {[%clk 0:02:37]} 3. Bf4 {[%clk 0:02:54]}  a6 {[%clk 0:02:35]} 4. e3 {[%clk 0:02:52]}  c5 {[%clk 0:02:34]} 5. Nf3 {[%clk 0:02:48]}  cxd4 {[%clk 0:02:33]} 6. exd4 {[%clk 0:02:48]}  Nc6 {[%clk 0:02:33]} 7. Ne5 {[%clk 0:02:48]}  Bd7 {[%clk 0:02:32]} 8. Ne2 {[%clk 0:02:49]}  e6 {[%clk 0:02:29]} 9. Nc1 {[%clk 0:02:49]}  Nxe5 {[%clk 0:02:27]} 10. Bxe5 {[%clk 0:02:48]}  Rc8 {[%clk 0:02:26]} 11. c3 {[%clk 0:02:46]}  Be7 {[%clk 0:02:25]} 12. Be2 {[%clk 0:02:43]}  O-O {[%clk 0:02:25]} 13. O-O {[%clk 0:02:44]}  Ne4 {[%clk 0:02:23]} 14. Nd3 {[%clk 0:02:37]}  Bf6 {[%clk 0:02:08]} 15. Re1 {[%clk 0:02:37]}  Bb5 {[%clk 0:02:07]} 16. Bxf6 {[%clk 0:02:23]}  Qxf6 {[%clk 0:02:08]} 17. Bf3 {[%clk 0:02:22]}  Bxd3 {[%clk 0:02:06]} 18. Qxd3 {[%clk 0:02:22]}  Nd6 {[%clk 0:02:07]} 19. Re2 {[%clk 0:02:10]}  Rc7 {[%clk 0:01:59]} 20. Rae1 {[%clk 0:02:10]}  Rfc8 {[%clk 0:02:00]} 21. g3 {[%clk 0:02:10]}  g6 {[%clk 0:01:59]} 22. h4 {[%clk 0:02:10]}  b5 {[%clk 0:01:58]} 23. h5 {[%clk 0:02:08]}  a5 {[%clk 0:01:55]} 24. Bg2 {[%clk 0:01:55]}  b4 {[%clk 0:01:53]} 25. hxg6 {[%clk 0:01:47]}  hxg6 {[%clk 0:01:50]} 26. Qa6 {[%clk 0:01:48]}  Rc6 {[%clk 0:01:38]} 27. Qxa5 {[%clk 0:01:48]}  bxc3 {[%clk 0:01:39]} 28. bxc3 {[%clk 0:01:46]}  Rxc3 {[%clk 0:01:38]} 29. Qa7 {[%clk 0:01:41]}  Nb5 {[%clk 0:01:35]} 30. Qb7 {[%clk 0:01:24]}  Nxd4 {[%clk 0:01:35]} 31. Rd2 {[%clk 0:01:22]}  Nf5 {[%clk 0:01:33]} 32. a4 {[%clk 0:01:20]}  R3c7 {[%clk 0:01:33]} 33. Qb6 {[%clk 0:01:17]}  Rc6 {[%clk 0:01:30]} 34. Qb7 {[%clk 0:01:17]}  Nd6 {[%clk 0:01:29]} 35. Qb4 {[%clk 0:01:15]}  Nc4 {[%clk 0:01:29]} 36. Rdd1 {[%clk 0:01:14]}  Kg7 {[%clk 0:01:26]} 37. a5 {[%clk 0:01:14]}  Ra8 {[%clk 0:01:22]} 38. Ra1 {[%clk 0:01:14]}  Rca6 {[%clk 0:01:21]} 39. Bf1 {[%clk 0:01:12]}  Rxa5 {[%clk 0:01:15]} 40. Rxa5 {[%clk 0:01:12]}  Nxa5 {[%clk 0:01:16]} 41. Qa4 {[%clk 0:01:09]}  Qc3 {[%clk 0:01:02]} 42. Ra1 {[%clk 0:01:06]}  d4 {[%clk 0:01:02]} 43. Ra3 {[%clk 0:01:02]}  Qc5 {[%clk 0:01:01]} 44. Ra2 {[%clk 0:00:59]}  Ra7 {[%clk 0:01:01]} 45. Rc2 {[%clk 0:00:59]}  Qd6 {[%clk 0:00:59]} 46. Bg2 {[%clk 0:00:51]}  e5 {[%clk 0:00:59]} 47. Qb5 {[%clk 0:00:47]}  Rc7 {[%clk 0:00:52]} 48. Ra2 {[%clk 0:00:37]}  Nc4 {[%clk 0:00:50]} 49. Ra8 {[%clk 0:00:35]}  Nb6 {[%clk 0:00:48]} 50. Rb8 {[%clk 0:00:33]}  Nd7 {[%clk 0:00:47]} 51. Rd8 {[%clk 0:00:33]}  Qe7 {[%clk 0:00:47]} 52. Ra8 {[%clk 0:00:31]}  Nf6 {[%clk 0:00:45]} 53. Qb8 {[%clk 0:00:30]}  Kh6 {[%clk 0:00:39]} 54. Qh8+ {[%clk 0:00:30]}  Nh7 {[%clk 0:00:39]} 55. Be4 {[%clk 0:00:24]}  f5 {[%clk 0:00:38]} 56. Bd5 {[%clk 0:00:20]}  d3 {[%clk 0:00:34]} 57. Kg2 {[%clk 0:00:20]}  d2 {[%clk 0:00:34]} 58. Ra1 {[%clk 0:00:21]}  Rd7 {[%clk 0:00:31]} 59. Rh1+ {[%clk 0:00:17]}  Kg5 {[%clk 0:00:31]} 60. f4+ {[%clk 0:00:18]}  exf4 {[%clk 0:00:31]} 61. gxf4+ {[%clk 0:00:18]}  Kxf4 {[%clk 0:00:30]} 62. Qd4+ {[%clk 0:00:19]}  Qe4+ {[%clk 0:00:31]} 63. Bxe4 {[%clk 0:00:10]}  Rxd4 {[%clk 0:00:32]} 64. Bf3 {[%clk 0:00:11]}  Ng5 {[%clk 0:00:32]} 65. Bd1 {[%clk 0:00:12]}  Ke5 {[%clk 0:00:32]} 66. Kf2 {[%clk 0:00:12]}  Ne4+ {[%clk 0:00:33]} 67. Ke3 {[%clk 0:00:12]}  f4+ {[%clk 0:00:33]} 68. Kf3 {[%clk 0:00:12]}  g5 {[%clk 0:00:32]} 69. Rh8 {[%clk 0:00:12]}  Nc3 {[%clk 0:00:32]} 70. Re8+ {[%clk 0:00:12]}  Kf6 {[%clk 0:00:33]} 71. Rf8+ {[%clk 0:00:13]}  Kg7 {[%clk 0:00:33]} 72. Rd8 {[%clk 0:00:14]}  Rxd8 {[%clk 0:00:33]} 0-1


[Site "https://www.chess.com"]

[Event "Titled Tuesday Blitz May 2 Early 2023"]
[White "Weetik, Vjacheslav"]
[Black "Kramnik, Vladimir"]
[WhiteFideId "4153472"]
[BlackFideId "4101588"]
[WhiteElo "2469"]
[BlackElo "2712"]
[Result "0-1"]
[Round "06"]
[TimeControl "180+2"]
[Date "2023.05.02"]
[WhiteClock "0:00:02"]
[BlackClock "0:00:30"]

1. d4 {[%clk 0:02:57]}  Nf6 {[%clk 0:02:58]} 2. Bf4 {[%clk 0:02:57]}  d5 {[%clk 0:02:55]} 3. e3 {[%clk 0:02:57]}  c5 {[%clk 0:02:54]} 4. c3 {[%clk 0:02:58]}  Nc6 {[%clk 0:02:52]} 5. Nd2 {[%clk 0:02:58]}  Qb6 {[%clk 0:02:51]} 6. Qb3 {[%clk 0:02:58]}  e6 {[%clk 0:02:42]} 7. h3 {[%clk 0:02:50]}  Be7 {[%clk 0:02:39]} 8. Ngf3 {[%clk 0:02:50]}  Bd7 {[%clk 0:02:38]} 9. Be2 {[%clk 0:02:43]}  O-O {[%clk 0:02:36]} 10. O-O {[%clk 0:02:43]}  Rfc8 {[%clk 0:02:35]} 11. Ne5 {[%clk 0:02:37]}  Be8 {[%clk 0:02:33]} 12. Rfe1 {[%clk 0:02:25]}  Nxe5 {[%clk 0:02:29]} 13. Bxe5 {[%clk 0:02:24]}  Nd7 {[%clk 0:02:28]} 14. Bg3 {[%clk 0:02:22]}  Qxb3 {[%clk 0:02:25]} 15. axb3 {[%clk 0:02:21]}  a6 {[%clk 0:02:25]} 16. dxc5 {[%clk 0:02:03]}  Nxc5 {[%clk 0:02:21]} 17. b4 {[%clk 0:02:03]}  Na4 {[%clk 0:02:18]} 18. Reb1 {[%clk 0:01:59]}  Bf6 {[%clk 0:02:17]} 19. Bd1 {[%clk 0:01:47]}  Nxb2 {[%clk 0:02:12]} 20. Rxb2 {[%clk 0:01:47]}  Bxc3 {[%clk 0:02:13]} 21. Rba2 {[%clk 0:01:47]}  Bxa1 {[%clk 0:02:05]} 22. Rxa1 {[%clk 0:01:47]}  b6 {[%clk 0:01:57]} 23. Nf3 {[%clk 0:01:35]}  a5 {[%clk 0:01:50]} 24. bxa5 {[%clk 0:01:32]}  bxa5 {[%clk 0:01:50]} 25. Nd4 {[%clk 0:01:30]}  a4 {[%clk 0:01:47]} 26. Bd6 {[%clk 0:01:30]}  h6 {[%clk 0:01:37]} 27. f4 {[%clk 0:01:30]}  Rc3 {[%clk 0:01:35]} 28. Kf2 {[%clk 0:01:27]}  Rb8 {[%clk 0:01:28]} 29. Ra2 {[%clk 0:01:11]}  Rb6 {[%clk 0:01:26]} 30. Be5 {[%clk 0:00:50]}  Rc4 {[%clk 0:01:18]} 31. Ne2 {[%clk 0:00:39]}  Rb7 {[%clk 0:00:59]} 32. Ra3 {[%clk 0:00:36]}  Rb1 {[%clk 0:00:54]} 33. Nc3 {[%clk 0:00:28]}  Rxc3 {[%clk 0:00:43]} 34. Rxc3 {[%clk 0:00:28]}  Rxd1 {[%clk 0:00:43]} 35. Rc8 {[%clk 0:00:28]}  f6 {[%clk 0:00:44]} 36. Bxf6 {[%clk 0:00:14]}  gxf6 {[%clk 0:00:43]} 37. Rxe8+ {[%clk 0:00:14]}  Kf7 {[%clk 0:00:44]} 38. Ra8 {[%clk 0:00:15]}  Ra1 {[%clk 0:00:44]} 39. g4 {[%clk 0:00:12]}  a3 {[%clk 0:00:43]} 40. h4 {[%clk 0:00:13]}  a2 {[%clk 0:00:42]} 41. Kg2 {[%clk 0:00:12]}  e5 {[%clk 0:00:42]} 42. f5 {[%clk 0:00:10]}  d4 {[%clk 0:00:33]} 43. Ra7+ {[%clk 0:00:10]}  Ke8 {[%clk 0:00:32]} 44. exd4 {[%clk 0:00:07]}  exd4 {[%clk 0:00:32]} 45. Ra3 {[%clk 0:00:02]}  d3 {[%clk 0:00:30]} 0-1


[Site "https://www.chess.com"]

[Event "Titled Tuesday Blitz May 2 Early 2023"]
[White "Fernandez Guillen, Ernesto J."]
[Black "Zhigalko, Sergei"]
[WhiteFideId "3512428"]
[BlackFideId "13502956"]
[WhiteElo "2423"]
[BlackElo "2626"]
[Result "1-0"]
[Round "06"]
[TimeControl "180+2"]
[Date "2023.05.02"]
[WhiteClock "0:00:11"]
[BlackClock "0:00:01"]

1. e4 {[%clk 0:03:00]}  c5 {[%clk 0:03:00]} 2. Nf3 {[%clk 0:03:01]}  Nc6 {[%clk 0:03:00]} 3. Nc3 {[%clk 0:03:01]}  Nf6 {[%clk 0:03:00]} 4. e5 {[%clk 0:03:00]}  Ng4 {[%clk 0:03:00]} 5. Qe2 {[%clk 0:03:00]}  f6 {[%clk 0:03:01]} 6. exf6 {[%clk 0:02:57]}  Nxf6 {[%clk 0:03:02]} 7. d3 {[%clk 0:02:52]}  d5 {[%clk 0:03:01]} 8. h3 {[%clk 0:02:49]}  Qd6 {[%clk 0:02:14]} 9. d4 {[%clk 0:02:26]}  a6 {[%clk 0:01:55]} 10. dxc5 {[%clk 0:02:20]}  Qxc5 {[%clk 0:01:54]} 11. a3 {[%clk 0:01:58]}  Bf5 {[%clk 0:01:49]} 12. g4 {[%clk 0:01:42]}  Bg6 {[%clk 0:01:49]} 13. Nh4 {[%clk 0:01:42]}  Bf7 {[%clk 0:01:38]} 14. Bg2 {[%clk 0:01:41]}  e5 {[%clk 0:01:10]} 15. O-O {[%clk 0:01:38]}  O-O-O {[%clk 0:01:05]} 16. Bg5 {[%clk 0:01:35]}  h6 {[%clk 0:01:02]} 17. Bxf6 {[%clk 0:01:35]}  gxf6 {[%clk 0:01:03]} 18. Nf5 {[%clk 0:01:36]}  h5 {[%clk 0:01:00]} 19. Rad1 {[%clk 0:01:35]}  hxg4 {[%clk 0:00:59]} 20. hxg4 {[%clk 0:01:24]}  Nd4 {[%clk 0:00:30]} 21. Qd3 {[%clk 0:01:14]}  Qc7 {[%clk 0:00:17]} 22. Rfe1 {[%clk 0:01:10]}  Bc5 {[%clk 0:00:15]} 23. b4 {[%clk 0:00:59]}  Ba7 {[%clk 0:00:13]} 24. Nxd4 {[%clk 0:00:33]}  Bxd4 {[%clk 0:00:13]} 25. Ne2 {[%clk 0:00:30]}  Ba7 {[%clk 0:00:12]} 26. c4 {[%clk 0:00:17]}  dxc4 {[%clk 0:00:04]} 27. Qf5+ {[%clk 0:00:17]}  Kb8 {[%clk 0:00:05]} 28. Qxf6 {[%clk 0:00:17]}  Rhf8 {[%clk 0:00:02]} 29. Rxd8+ {[%clk 0:00:17]}  Rxd8 {[%clk 0:00:02]} 30. Nc3 {[%clk 0:00:16]}  Re8 {[%clk 0:00:02]} 31. Bd5 {[%clk 0:00:14]}  Bxd5 {[%clk 0:00:01]} 32. Nxd5 {[%clk 0:00:15]}  Qc6 {[%clk 0:00:01]} 33. Qf7 {[%clk 0:00:14]}  Bd4 {[%clk 0:00:01]} 34. Nf6 {[%clk 0:00:13]}  Rd8 {[%clk 0:00:01]} 35. Qe7 {[%clk 0:00:11]} 1-0


[Site "https://www.chess.com"]

[Event "Titled Tuesday Blitz May 2 Early 2023"]
[White "Bachmann, Axel"]
[Black "Kozak, Antoni"]
[WhiteFideId "3700488"]
[BlackFideId "21832030"]
[WhiteElo "2605"]
[BlackElo "2470"]
[Result "1-0"]
[Round "06"]
[TimeControl "180+2"]
[Date "2023.05.02"]
[WhiteClock "0:01:13"]
[BlackClock "0:00:18"]

1. e4 {[%clk 0:02:59]}  Nf6 {[%clk 0:03:00]} 2. e5 {[%clk 0:02:58]}  Nd5 {[%clk 0:03:01]} 3. Nc3 {[%clk 0:02:58]}  Nxc3 {[%clk 0:03:00]} 4. dxc3 {[%clk 0:02:59]}  d6 {[%clk 0:03:00]} 5. Nf3 {[%clk 0:03:00]}  Nc6 {[%clk 0:03:00]} 6. Bf4 {[%clk 0:02:54]}  Bg4 {[%clk 0:02:55]} 7. Bb5 {[%clk 0:02:54]}  a6 {[%clk 0:02:53]} 8. Bxc6+ {[%clk 0:02:53]}  bxc6 {[%clk 0:02:54]} 9. h3 {[%clk 0:02:54]}  Bxf3 {[%clk 0:02:42]} 10. Qxf3 {[%clk 0:02:54]}  Qd7 {[%clk 0:02:43]} 11. O-O-O {[%clk 0:02:18]}  e6 {[%clk 0:02:28]} 12. exd6 {[%clk 0:02:17]}  cxd6 {[%clk 0:02:29]} 13. Rhe1 {[%clk 0:02:04]}  d5 {[%clk 0:02:22]} 14. Be5 {[%clk 0:01:59]}  f6 {[%clk 0:02:19]} 15. Bxf6 {[%clk 0:01:53]}  gxf6 {[%clk 0:00:49]} 16. Qxf6 {[%clk 0:01:54]}  Qg7 {[%clk 0:00:49]} 17. Qxe6+ {[%clk 0:01:49]}  Kd8 {[%clk 0:00:49]} 18. Qe8+ {[%clk 0:01:33]}  Kc7 {[%clk 0:00:47]} 19. Qxa8 {[%clk 0:01:34]}  Bc5 {[%clk 0:00:36]} 20. Qxa6 {[%clk 0:01:23]}  Rb8 {[%clk 0:00:29]} 21. Re6 {[%clk 0:01:18]}  Bb6 {[%clk 0:00:17]} 22. Rde1 {[%clk 0:01:15]}  Qxg2 {[%clk 0:00:18]} 23. Re7+ {[%clk 0:01:14]}  Kd6 {[%clk 0:00:18]} 24. R1e6+ {[%clk 0:01:13]}  Kc5 {[%clk 0:00:18]} 25. b4# {[%clk 0:01:13]} 1-0


[Site "https://www.chess.com"]

[Event "Titled Tuesday Blitz May 2 Early 2023"]
[White "Gritsenko, Nikolai"]
[Black "Durarbayli, Vasif"]
[WhiteFideId "14112493"]
[BlackFideId "13402935"]
[WhiteElo "2389"]
[BlackElo "2551"]
[Result "0-1"]
[Round "06"]
[TimeControl "180+2"]
[Date "2023.05.02"]
[WhiteClock "0:00:03"]
[BlackClock "0:00:03"]

1. d4 {[%clk 0:03:00]}  Nf6 {[%clk 0:02:57]} 2. Bf4 {[%clk 0:02:59]}  d5 {[%clk 0:02:53]} 3. e3 {[%clk 0:02:59]}  c5 {[%clk 0:02:53]} 4. dxc5 {[%clk 0:02:57]}  Nc6 {[%clk 0:02:53]} 5. Nf3 {[%clk 0:02:57]}  e6 {[%clk 0:02:52]} 6. Nbd2 {[%clk 0:02:54]}  Bxc5 {[%clk 0:02:52]} 7. Bd3 {[%clk 0:02:39]}  h6 {[%clk 0:02:47]} 8. O-O {[%clk 0:02:36]}  Nh5 {[%clk 0:02:47]} 9. Bg3 {[%clk 0:02:34]}  O-O {[%clk 0:02:41]} 10. c4 {[%clk 0:02:30]}  Nxg3 {[%clk 0:02:34]} 11. hxg3 {[%clk 0:02:30]}  dxc4 {[%clk 0:02:28]} 12. Nxc4 {[%clk 0:02:29]}  Qf6 {[%clk 0:01:59]} 13. a3 {[%clk 0:02:24]}  Rd8 {[%clk 0:01:44]} 14. Qe2 {[%clk 0:02:14]}  Bf8 {[%clk 0:01:20]} 15. Rac1 {[%clk 0:02:10]}  Bd7 {[%clk 0:01:17]} 16. Rfd1 {[%clk 0:02:05]}  Rac8 {[%clk 0:01:17]} 17. b4 {[%clk 0:02:05]}  Be8 {[%clk 0:01:17]} 18. e4 {[%clk 0:01:59]}  Nd4 {[%clk 0:01:02]} 19. Nxd4 {[%clk 0:01:56]}  Rxd4 {[%clk 0:01:02]} 20. f4 {[%clk 0:01:37]}  Ba4 {[%clk 0:00:55]} 21. Re1 {[%clk 0:01:18]}  Bb5 {[%clk 0:00:25]} 22. Ne5 {[%clk 0:01:07]}  Rxc1 {[%clk 0:00:23]} 23. Rxc1 {[%clk 0:01:06]}  Rxd3 {[%clk 0:00:24]} 24. Nxd3 {[%clk 0:01:04]}  Qd4+ {[%clk 0:00:24]} 25. Kh2 {[%clk 0:01:03]}  Bxd3 {[%clk 0:00:22]} 26. Rd1 {[%clk 0:00:56]}  Bxe2 {[%clk 0:00:19]} 27. Rxd4 {[%clk 0:00:56]}  Bb5 {[%clk 0:00:16]} 28. g4 {[%clk 0:00:49]}  f6 {[%clk 0:00:16]} 29. Rd8 {[%clk 0:00:48]}  e5 {[%clk 0:00:13]} 30. fxe5 {[%clk 0:00:44]}  fxe5 {[%clk 0:00:14]} 31. Kg3 {[%clk 0:00:44]}  Kf7 {[%clk 0:00:13]} 32. Ra8 {[%clk 0:00:41]}  a6 {[%clk 0:00:13]} 33. Rb8 {[%clk 0:00:41]}  Bc6 {[%clk 0:00:13]} 34. Kf3 {[%clk 0:00:41]}  Be7 {[%clk 0:00:13]} 35. g3 {[%clk 0:00:38]}  Bg5 {[%clk 0:00:11]} 36. a4 {[%clk 0:00:38]}  Bxa4 {[%clk 0:00:05]} 37. Rxb7+ {[%clk 0:00:37]}  Be7 {[%clk 0:00:05]} 38. g5 {[%clk 0:00:30]}  hxg5 {[%clk 0:00:05]} 39. Kg4 {[%clk 0:00:30]}  g6 {[%clk 0:00:04]} 40. Kf3 {[%clk 0:00:25]}  Bb5 {[%clk 0:00:05]} 41. Ke3 {[%clk 0:00:24]}  Ke8 {[%clk 0:00:04]} 42. Rb8+ {[%clk 0:00:24]}  Kf7 {[%clk 0:00:04]} 43. Rb7 {[%clk 0:00:24]}  g4 {[%clk 0:00:05]} 44. Kd2 {[%clk 0:00:23]}  Kf6 {[%clk 0:00:03]} 45. Kc3 {[%clk 0:00:22]}  Ke6 {[%clk 0:00:03]} 46. Rb6+ {[%clk 0:00:22]}  Bd6 {[%clk 0:00:04]} 47. Rb7 {[%clk 0:00:21]}  Bc6 {[%clk 0:00:04]} 48. Rb6 {[%clk 0:00:20]}  Bxe4 {[%clk 0:00:04]} 49. Rxa6 {[%clk 0:00:20]}  Kd7 {[%clk 0:00:03]} 50. b5 {[%clk 0:00:19]}  Bb7 {[%clk 0:00:03]} 51. Ra7 {[%clk 0:00:19]}  Kc7 {[%clk 0:00:03]} 52. Ra2 {[%clk 0:00:17]}  e4 {[%clk 0:00:04]} 53. Kd4 {[%clk 0:00:16]}  Bxg3 {[%clk 0:00:03]} 54. Rg2 {[%clk 0:00:15]}  Bf4 {[%clk 0:00:03]} 55. Rxg4 {[%clk 0:00:15]}  g5 {[%clk 0:00:04]} 56. Kc5 {[%clk 0:00:13]}  e3 {[%clk 0:00:04]} 57. b6+ {[%clk 0:00:14]}  Kd7 {[%clk 0:00:04]} 58. Rg1 {[%clk 0:00:14]}  e2 {[%clk 0:00:04]} 59. Re1 {[%clk 0:00:13]}  Bf3 {[%clk 0:00:04]} 60. Kd4 {[%clk 0:00:12]}  g4 {[%clk 0:00:03]} 61. Kd3 {[%clk 0:00:07]}  Bg3 {[%clk 0:00:04]} 62. b7 {[%clk 0:00:06]}  Kc7 {[%clk 0:00:03]} 63. Rg1 {[%clk 0:00:03]}  e1=Q {[%clk 0:00:02]} 64. Rxe1 {[%clk 0:00:03]}  Bxe1 {[%clk 0:00:03]} 0-1


[Site "https://www.chess.com"]